bitfinex/quotes_SOLUSD_20241226
["timestamp","ask_amount","ask_price","bid_price","bid_amount"]
[1735190344461,9.06610216,195.38,195.31,9.06610216]
[1735190344645,9.06610216,195.37,195.3,40.60870216]
[1735190346049,9.06610216,195.38,195.33,20.0]
[1735190346249,9.83696096,195.37,195.3,40.60870216]
[1735190346464,9.83696096,195.37,195.3,31.5426]
[1735190346663,9.83696096,195.37,195.31,23.776884]
[1735190346871,9.06610216,195.37,195.31,23.776884]
[1735190347780,9.06610216,195.4,195.33,30.0]
[1735190347969,9.83696096,195.41,195.34,23.776884]
[1735190348156,9.06610216,195.41,195.34,23.776884]
[1735190348348,9.06610216,195.41,195.34,32.84298616]
[1735190348550,9.06610216,195.41,195.34,23.776884]
[1735190348777,9.06610216,195.41,195.36,30.0]
[1735190349893,9.06610216,195.41,195.34,62.84298616]
[1735190350054,9.06610216,195.41,195.34,53.776884]
[1735190350860,0.7708588,195.4,195.34,53.776884]
[1735190351064,9.83696096,195.4,195.34,53.776884]
[1735190351264,9.06610216,195.4,195.34,53.776884]
[1735190352282,9.06610216,195.41,195.34,53.776884]
[1735190352779,9.06610216,195.41,195.34,62.84298616]
[1735190353075,9.06610216,195.39,195.32,30.0]
[1735190353276,9.06610216,195.37,195.3,39.06610216]
[1735190353462,9.83696096,195.36,195.3,30.0]
[1735190353655,9.06610216,195.36,195.3,30.0]
[1735190354582,9.06610216,195.36,195.31,23.776884]
[1735190355074,9.06610216,195.37,195.31,23.776884]
[1735190355279,9.06610216,195.38,195.31,32.84298616]
[1735190355580,9.06610216,195.38,195.32,30.0]
[1735190355775,9.06610216,195.38,195.28,30.76781377]
[1735190355979,9.06610216,195.38,195.31,39.06610216]
[1735190356697,9.06610216,195.38,195.32,23.776884]
[1735190356983,9.06610216,195.39,195.33,30.0]
[1735190358295,9.06610216,195.4,195.33,30.0]
[1735190358483,9.06610216,195.38,195.34,23.776884]
[1735190358660,9.06610216,195.39,195.34,23.776884]
[1735190360973,9.06610216,195.39,195.33,23.776884]
[1735190361174,9.06610216,195.39,195.32,23.902374]
[1735190361385,9.06610216,195.39,195.34,30.0]
[1735190364982,9.06610216,195.41,195.35,23.776884]
[1735190365585,0.7708588,195.44,195.37,30.0]
[1735190365786,9.06610216,195.43,195.37,30.0]
[1735190365998,9.06610216,195.43,195.38,23.776884]
[1735190366386,9.06610216,195.43,195.39,30.0]
[1735190366617,9.06610216,195.44,195.39,30.0]
[1735190366887,6.6371,195.45,195.41,30.0]
[1735190367197,9.06610216,195.48,195.43,30.0]
[1735190367490,9.06610216,195.48,195.42,23.776884]
[1735190367491,9.06610216,195.46,195.39,39.06610216]
[1735190367677,9.06610216,195.43,195.36,39.06610216]
[1735190367883,9.06610216,195.43,195.37,23.776884]
[1735190368396,9.06610216,195.43,195.39,30.0]
[1735190369693,9.06610216,195.44,195.39,30.0]
[1735190370990,9.83696096,195.43,195.37,53.776884]
[1735190371194,9.06610216,195.41,195.36,23.776884]
[1735190371783,9.06610216,195.42,195.36,23.776884]
[1735190373501,9.06610216,195.43,195.38,23.776884]
[1735190373801,9.06610216,195.44,195.38,23.776884]
[1735190373996,9.06610216,195.43,195.36,9.06610216]
[1735190374176,0.7708588,195.42,195.36,9.06610216]
[1735190374375,0.7708588,195.42,195.36,23.776884]
[1735190374593,0.7708588,195.46,195.4,9.06610216]
[1735190374779,0.7708588,195.54,195.48,20.0]
[1735190375103,7.86446034,195.55,195.51,9.06610216]
[1735190375278,7.86446034,195.54,195.53,20.0]
[1735190375605,7.86446034,195.54,195.51,39.06610216]
[1735190375985,7.86446034,195.54,195.49,30.0]
[1735190376310,7.86446034,195.54,195.49,14.13639996]
[1735190376626,0.7708588,195.54,195.47,14.13639996]
[1735190378091,0.7708588,195.54,195.47,44.13639996]
[1735190379715,14.13639996,195.53,195.45,30.0]
[1735190379905,14.13639996,195.51,195.43,30.0]
[1735190380111,14.13639996,195.49,195.41,45.66019996]
[1735190380425,14.90725876,195.48,195.41,45.66019996]
[1735190380824,14.13639996,195.49,195.41,45.66019996]
[1735190381196,14.13639996,195.5,195.42,14.13639996]
[1735190381426,0.7708588,195.49,195.45,20.0]
[1735190381721,14.90725876,195.49,195.45,20.0]
[1735190383521,14.90725876,195.49,195.44,20.0]
[1735190383710,14.13639996,195.46,195.4,23.776884]
[1735190387036,14.13639996,195.48,195.41,44.13639996]
[1735190387206,14.13639996,195.48,195.42,23.776884]
[1735190387401,14.13639996,195.48,195.41,44.13639996]
[1735190387622,14.90725876,195.47,195.41,30.0]
[1735190388498,0.7708588,195.47,195.41,30.0]
[1735190388693,14.13639996,195.48,195.43,30.0]
[1735190389194,14.13639996,195.5,195.43,30.0]
[1735190389399,14.13639996,195.51,195.44,23.776884]
[1735190389817,14.13639996,195.51,195.45,30.0]
[1735190390431,0.7708588,195.5,195.45,30.0]
[1735190390600,14.90725876,195.5,195.45,30.0]
[1735190392313,14.13639996,195.5,195.45,30.0]
[1735190392621,14.13639996,195.51,195.45,30.0]
[1735190393220,0.7708588,195.5,195.45,30.0]
[1735190393407,14.13639996,195.51,195.45,30.0]
[1735190395825,14.13639996,195.53,195.45,60.0]
[1735190396012,14.13639996,195.53,195.46,14.13639996]
[1735190397023,14.90725876,195.55,195.47,44.13639996]
[1735190397218,14.90725876,195.55,195.48,14.13639996]
[1735190397527,20.39689996,195.56,195.49,14.13639996]
[1735190397823,21.16775876,195.56,195.49,14.13639996]
[1735190398730,14.13639996,195.55,195.5,20.0]
[1735190398930,14.13639996,195.55,195.47,44.13639996]
[1735190399102,14.13639996,195.55,195.48,23.776884]
[1735190400033,14.13639996,195.53,195.48,23.776884]
[1735190400325,0.7708588,195.52,195.48,20.0]
[1735190400527,14.13639996,195.53,195.48,20.0]
[1735190400712,20.9812,195.61,195.51,23.776884]
[1735190400915,20.9812,195.61,195.52,30.0]
[1735190400916,14.13639996,195.59,195.52,30.0]
[1735190401124,14.90725876,195.6,195.53,37.91328396]
[1735190401423,14.13639996,195.58,195.55,20.0]
[1735190401637,14.13639996,195.58,195.5,44.13639996]
[1735190401932,14.13639996,195.51,195.44,1.5584]
[1735190402117,14.90725876,195.5,195.44,1.5584]
[1735190402813,14.13639996,195.49,195.41,20.30399996]
[1735190403128,14.90725876,195.48,195.4,44.13639996]
[1735190403515,14.90725876,195.48,195.41,14.13639996]
[1735190404127,14.90725876,195.48,195.44,20.0]
[1735190404329,14.13639996,195.5,195.45,20.0]
[1735190404520,14.13639996,195.51,195.45,20.0]
[1735190405134,14.13639996,195.5,195.45,20.0]
[1735190405829,14.13639996,195.52,195.46,30.0]
[1735190406710,14.13639996,195.53,195.48,30.0]
[1735190406909,14.13639996,195.51,195.46,23.776884]
[1735190407434,14.13639996,195.51,195.46,53.776884]
[1735190408045,14.13639996,195.53,195.49,20.0]
[1735190408223,14.13639996,195.54,195.49,20.0]
[1735190408411,14.13639996,195.55,195.5,53.776884]
[1735190409121,14.13639996,195.56,195.5,53.776884]
[1735190409634,14.13639996,195.57,195.5,53.776884]
[1735190409840,14.13639996,195.57,195.52,30.0]
[1735190410253,14.13639996,195.58,195.52,30.0]
[1735190410449,14.13639996,195.57,195.5,67.91328396]
[1735190410742,14.13639996,195.57,195.53,20.0]
[1735190413522,14.13639996,195.58,195.53,20.0]
[1735190413721,14.13639996,195.58,195.55,20.0]
[1735190414220,14.13639996,195.59,195.55,20.0]
[1735190414735,14.13639996,195.58,195.55,20.0]
[1735190415841,14.13639996,195.57,195.55,20.0]
[1735190416135,14.90725876,195.56,195.53,20.0]
[1735190416333,14.13639996,195.55,195.53,20.0]
[1735190416537,14.13639996,195.54,195.48,31.5584]
[1735190417124,14.13639996,195.55,195.48,31.5584]
[1735190417838,14.13639996,195.55,195.51,20.0]
[1735190418243,14.13639996,195.55,195.49,23.776884]
[1735190418417,14.13639996,195.57,195.52,23.776884]
[1735190419032,14.13639996,195.55,195.52,20.0]
[1735190420966,14.13639996,195.55,195.51,20.0]
[1735190421119,14.13639996,195.55,195.52,20.0]
[1735190422646,14.13639996,195.58,195.53,53.776884]
[1735190423223,14.13639996,195.58,195.53,23.776884]
[1735190423451,14.13639996,195.57,195.53,23.776884]
[1735190423630,14.13639996,195.57,195.52,20.0]
[1735190424146,14.13639996,195.58,195.53,30.0]
[1735190424359,14.13639996,195.61,195.56,23.776884]
[1735190425422,14.13639996,195.61,195.55,23.776884]
[1735190425624,14.13639996,195.6,195.54,23.902374]
[1735190428150,14.13639996,195.6,195.54,23.776884]
[1735190428359,14.13639996,195.57,195.54,20.0]
[1735190428650,14.13639996,195.58,195.52,30.0]
[1735190429647,14.13639996,195.58,195.53,23.776884]
[1735190430637,14.13639996,195.59,195.55,30.0]
[1735190431335,14.13639996,195.6,195.55,30.0]
[1735190433252,14.13639996,195.59,195.53,53.776884]
[1735190434172,7.86446034,195.75,195.62,20.0]
[1735190434173,0.7708588,195.69,195.62,20.0]
[1735190434359,9.03894887,195.65,195.6,20.0]
[1735190434657,9.03894887,195.64,195.6,20.0]
[1735190435543,9.03894887,195.61,195.53,30.0]
[1735190435742,9.03894887,195.59,195.53,30.0]
[1735190436164,14.13253031,195.59,195.53,30.0]
[1735190436342,14.13253031,195.6,195.53,30.0]
[1735190436669,14.13253031,195.58,195.51,14.13253031]
[1735190436867,14.13253031,195.56,195.49,45.79093031]
[1735190438145,14.13253031,195.56,195.5,23.776884]
[1735190439138,14.13253031,195.55,195.5,23.776884]
[1735190439336,14.13253031,195.54,195.5,20.0]
[1735190439546,14.13253031,195.53,195.5,20.0]
[1735190439728,14.13253031,195.54,195.47,30.0]
[1735190439934,14.13253031,195.53,195.47,30.0]
[1735190440454,14.13253031,195.53,195.45,44.13253031]
[1735190440755,14.13253031,195.53,195.46,23.776884]
[1735190441244,14.13253031,195.53,195.49,20.0]
[1735190442248,14.13253031,195.52,195.49,20.0]
[1735190443159,14.13253031,195.5,195.44,1.6641]
[1735190443343,14.13253031,195.5,195.42,37.5493089]
[1735190443344,12.7851,195.54,195.42,44.13253031]
[1735190443537,14.13253031,195.51,195.46,30.0]
[1735190444263,14.13253031,195.5,195.44,30.0]
[1735190444457,14.13253031,195.5,195.46,30.0]
[1735190444657,14.13253031,195.51,195.46,30.0]
[1735190444840,14.13253031,195.51,195.47,20.0]
[1735190445041,14.13253031,195.5,195.46,30.0]
[1735190445262,14.13253031,195.5,195.45,23.776884]
[1735190445950,14.13253031,195.5,195.46,30.0]
[1735190446149,14.13253031,195.5,195.45,23.776884]
[1735190446461,14.13253031,195.5,195.46,30.0]
[1735190448040,14.13253031,195.5,195.45,23.776884]
[1735190448245,14.13253031,195.47,195.42,30.0]
[1735190448558,14.13253031,195.46,195.4,30.0]
[1735190448967,14.13253031,195.44,195.4,30.0]
[1735190449278,14.13253031,195.45,195.4,30.0]
[1735190449652,14.13253031,195.44,195.38,30.0]
[1735190449956,14.13253031,195.42,195.36,30.0]
[1735190451276,14.13253031,195.42,195.39,20.0]
[1735190452642,14.13253031,195.4,195.34,1.6641]
[1735190452843,14.13253031,195.38,195.33,30.0]
[1735190454069,14.13253031,195.38,195.34,23.776884]
[1735190455088,14.13253031,195.39,195.34,23.776884]
[1735190456167,14.13253031,195.4,195.34,23.776884]
[1735190456346,14.13253031,195.41,195.36,23.776884]
[1735190456551,1.5999,195.47,195.39,30.0]
[1735190456751,14.90338911,195.46,195.39,30.0]
[1735190456948,14.13253031,195.45,195.39,30.0]
[1735190457165,14.13253031,195.43,195.38,23.776884]
[1735190457368,14.13253031,195.43,195.38,30.0]
[1735190457568,14.13253031,195.44,195.38,30.0]
[1735190460056,14.13253031,195.41,195.36,30.0]
[1735190460244,1.5999,195.47,195.34,30.0]
[1735190460245,14.13253031,195.39,195.34,30.0]
[1735190460575,14.13253031,195.39,195.32,44.13253031]
[1735190461476,14.13253031,195.39,195.33,23.776884]
[1735190464679,14.13253031,195.39,195.34,30.0]
[1735190467996,14.13253031,195.37,195.33,23.776884]
[1735190468285,14.13253031,195.37,195.33,53.776884]
[1735190468484,14.13253031,195.37,195.33,23.776884]
[1735190468691,14.13253031,195.34,195.26,44.13253031]
[1735190468883,14.13253031,195.32,195.24,46.4633216]
[1735190470190,2.3026588,195.39,195.24,46.4633216]
[1735190470191,14.13253031,195.33,195.27,30.0]
[1735190471193,14.13253031,195.34,195.28,23.776884]
[1735190471367,14.13253031,195.35,195.29,30.0]
[1735190471566,14.13253031,195.35,195.3,23.776884]
[1735190472189,14.13253031,195.37,195.31,30.0]
[1735190473482,14.13253031,195.33,195.27,30.76779173]
[1735190473696,14.13253031,195.32,195.25,30.0]
[1735190474188,14.13253031,195.32,195.26,23.776884]
[1735190474391,15.0975588,195.39,195.26,23.776884]
[1735190474392,14.13253031,195.31,195.26,23.776884]
[1735190475396,14.13253031,195.27,195.21,36.61849029]
[1735190475582,14.13253031,195.26,195.21,30.0]
[1735190475884,14.13253031,195.26,195.19,14.13253031]
[1735190475885,14.13253031,195.25,195.19,30.0]
[1735190476093,14.13253031,195.26,195.19,30.0]
[1735190476276,14.13253031,195.25,195.19,30.0]
[1735190476483,14.13253031,195.24,195.19,30.0]
[1735190476667,14.13253031,195.25,195.19,30.0]
[1735190477269,14.13253031,195.25,195.22,20.0]
[1735190483704,14.13253031,195.25,195.23,30.0]
[1735190483998,14.13253031,195.28,195.23,30.0]
[1735190484183,14.13253031,195.31,195.26,23.776884]
[1735190484388,14.13253031,195.32,195.27,30.0]
[1735190489584,14.13253031,195.31,195.27,30.0]
[1735190490282,14.13253031,195.28,195.24,20.0]
[1735190490482,14.13253031,195.25,195.2,1.5278]
[1735190490679,14.13253031,195.23,195.18,30.0]
[1735190490884,14.13253031,195.21,195.16,1.6495]
[1735190492094,14.13253031,195.21,195.17,23.776884]
[1735190492602,14.13253031,195.21,195.17,53.776884]
[1735190493012,14.13253031,195.21,195.17,23.776884]
[1735190494616,14.13253031,195.21,195.17,53.776884]
[1735190494804,14.13253031,195.24,195.17,53.776884]
[1735190495304,14.13253031,195.23,195.17,23.776884]
[1735190495496,14.13253031,195.19,195.15,30.0]
[1735190495703,14.13253031,195.19,195.17,20.0]
[1735190496014,14.13253031,195.19,195.14,23.776884]
[1735190496305,14.13253031,195.16,195.11,31.6495]
[1735190496491,14.13253031,195.17,195.11,31.6495]
[1735190496900,14.13253031,195.16,195.11,30.0]
[1735190497288,14.13253031,195.16,195.1,0.12549]
[1735190497598,14.13253031,195.17,195.12,30.0]
[1735190497995,14.13253031,195.17,195.1,68.03490431]
[1735190498497,14.13253031,195.16,195.11,20.0]
[1735190499298,14.13253031,195.16,195.12,20.0]
[1735190500514,14.13253031,195.16,195.11,20.0]
[1735190502514,14.13253031,195.17,195.11,50.0]
[1735190503005,14.13253031,195.18,195.11,50.0]
[1735190504309,9.08321411,195.18,195.13,20.0]
[1735190506107,9.08321411,195.18,195.14,20.0]
[1735190506308,9.08321411,195.19,195.14,20.0]
[1735190506508,9.08321411,195.18,195.14,20.0]
[1735190507737,9.08321411,195.15,195.09,30.0]
[1735190508032,9.08321411,195.14,195.07,30.0]
[1735190508409,9.08321411,195.14,195.09,30.0]
[1735190508713,9.08321411,195.15,195.09,30.0]
[1735190508911,9.08321411,195.16,195.11,30.0]
[1735190509108,9.08321411,195.17,195.12,23.776884]
[1735190509501,9.08321411,195.15,195.12,23.776884]
[1735190510102,9.08321411,195.15,195.12,53.776884]
[1735190510309,9.08321411,195.16,195.12,53.776884]
[1735190510601,9.08321411,195.16,195.11,23.776884]
[1735190511424,9.08321411,195.16,195.12,30.0]
[1735190514324,9.08321411,195.14,195.12,20.0]
[1735190514622,9.08321411,195.14,195.1,23.776884]
[1735190514820,9.08321411,195.14,195.12,20.0]
[1735190515211,9.08321411,195.14,195.09,30.0]
[1735190515628,9.08321411,195.14,195.1,20.0]
[1735190515816,9.08321411,195.11,195.05,30.0]
[1735190517115,9.08321411,195.11,195.06,23.776884]
[1735190522820,0.7708588,195.17,195.08,30.0]
[1735190523128,9.08321411,195.16,195.1,30.0]
[1735190523524,9.08321411,195.15,195.1,30.0]
[1735190524012,9.08321411,195.16,195.12,30.0]
[1735190524723,9.08321411,195.16,195.11,23.776884]
[1735190526602,9.08321411,195.16,195.08,39.85177568]
[1735190526803,9.08321411,195.12,195.09,23.776884]
[1735190527024,9.08321411,195.11,195.06,30.0]
[1735190528132,9.08321411,195.08,195.06,30.0]
[1735190528331,9.08321411,195.09,195.06,30.0]
[1735190528934,9.08321411,195.09,195.03,30.0]
[1735190529251,6.5226,195.14,195.01,30.0]
[1735190529252,9.08321411,195.07,195.01,30.0]
[1735190529403,9.08321411,195.05,194.99,30.0]
[1735190529826,9.08321411,195.06,195.01,30.0]
[1735190530407,9.08321411,195.06,194.99,39.8522358]
[1735190530615,9.08321411,195.06,195.0,0.12549]
[1735190531239,9.08321411,195.06,195.02,20.0]
[1735190533039,0.7708588,195.11,194.97,1.5424]
[1735190533040,9.08321411,195.05,194.97,40.62561411]
[1735190533348,9.08321411,195.01,194.95,52.46931989]
[1735190534740,9.08321411,195.03,194.98,20.0]
[1735190537442,9.08321411,195.02,194.98,20.0]
[1735190537631,7.4013588,195.05,194.92,31.5424]
[1735190537632,9.08321411,195.0,194.92,31.5424]
[1735190538030,9.08321411,194.98,194.92,31.5424]
[1735190538743,9.08321411,194.99,194.92,31.5424]
[1735190539137,9.08321411,194.99,194.93,23.776884]
[1735190539443,9.08321411,194.98,194.93,23.776884]
[1735190539650,0.7708588,195.03,194.9,30.0]
[1735190539651,9.08321411,194.96,194.9,30.0]
[1735190539851,0.7708588,194.95,194.86,1.5424]
[1735190540047,9.08321411,194.91,194.85,30.0]
[1735190540252,9.08321411,194.91,194.84,9.85276929]
[1735190540447,9.08321411,194.91,194.83,30.0]
[1735190540448,9.08321411,194.89,194.83,30.0]
[1735190540656,9.08321411,194.88,194.83,30.0]
[1735190541226,9.08321411,194.86,194.81,30.0]
[1735190541433,9.08321411,194.85,194.81,30.0]
[1735190541756,9.08321411,194.86,194.81,30.0]
[1735190541952,9.08321411,194.86,194.79,30.0]
[1735190542140,14.23887771,194.86,194.79,30.0]
[1735190542647,14.23887771,194.86,194.79,44.23887771]
[1735190542943,14.23887771,194.86,194.82,20.0]
[1735190543162,14.23887771,194.89,194.84,30.0]
[1735190543838,14.23887771,194.91,194.87,23.776884]
[1735190544038,14.23887771,194.93,194.88,30.0]
[1735190544240,1.62,194.94,194.89,23.776884]
[1735190544241,14.23887771,194.94,194.89,23.776884]
[1735190544663,14.23887771,194.95,194.91,30.0]
[1735190545361,14.23887771,194.95,194.88,38.78520828]
[1735190545362,14.23887771,194.95,194.89,0.12549]
[1735190545549,14.23887771,194.94,194.91,20.0]
[1735190546155,14.23887771,194.93,194.88,53.776884]
[1735190546465,2.4334588,194.99,194.85,15.78807771]
[1735190546466,14.23887771,194.91,194.87,30.0]
[1735190546663,14.23887771,194.91,194.86,23.776884]
[1735190546849,14.23887771,194.91,194.88,20.0]
[1735190547052,14.23887771,194.91,194.85,1.5492]
[1735190547358,14.23887771,194.9,194.86,20.0]
[1735190547566,14.23887771,194.89,194.83,30.0]
[1735190548667,14.23887771,194.89,194.84,23.776884]
[1735190549870,14.23887771,194.9,194.85,30.0]
[1735190550057,12.8218,194.98,194.86,23.776884]
[1735190550058,14.23887771,194.92,194.86,23.776884]
[1735190550242,14.23887771,194.91,194.86,23.776884]
[1735190550544,14.23887771,194.91,194.88,30.0]
[1735190550745,14.23887771,194.91,194.86,23.776884]
[1735190550955,14.23887771,194.9,194.86,23.776884]
[1735190551572,14.23887771,194.91,194.86,53.776884]
[1735190551755,14.23887771,194.92,194.86,53.776884]
[1735190551944,14.23887771,194.91,194.86,53.776884]
[1735190552145,14.23887771,194.9,194.84,23.776884]
[1735190552569,14.23887771,194.9,194.86,30.0]
[1735190553070,14.23887771,194.9,194.84,53.776884]
[1735190553268,14.23887771,194.91,194.86,30.0]
[1735190553767,14.23887771,194.91,194.84,68.01576171]
[1735190554169,14.23887771,194.91,194.84,53.776884]
[1735190554562,12.8218,194.98,194.8,7.66390577]
[1735190554563,14.23887771,194.88,194.85,20.0]
[1735190554764,0.7708588,194.9,194.85,20.0]
[1735190554765,14.23887771,194.9,194.85,20.0]
[1735190555250,14.23887771,194.89,194.85,20.0]
[1735190555766,14.23887771,194.9,194.87,20.0]
[1735190555945,14.23887771,194.91,194.87,20.0]
[1735190559566,14.23887771,194.92,194.87,20.0]
[1735190559771,14.23887771,194.95,194.9,23.776884]
[1735190559951,14.23887771,194.97,194.91,30.0]
[1735190560290,2.4334588,194.99,194.9,23.776884]
[1735190560291,14.23887771,194.94,194.9,23.776884]
[1735190560444,2.4334588,194.99,194.87,20.0]
[1735190560445,14.23887771,194.92,194.87,20.0]
[1735190560783,14.23887771,194.9,194.85,23.776884]
[1735190560949,14.23887771,194.94,194.89,23.776884]
[1735190561149,14.23887771,194.93,194.87,23.776884]
[1735190561369,14.23887771,194.92,194.87,23.776884]
[1735190562861,14.23887771,194.92,194.85,0.7696335]
[1735190563051,14.23887771,194.92,194.87,20.0]
[1735190563254,14.23887771,194.91,194.87,20.0]
[1735190565147,14.23887771,194.93,194.87,20.0]
[1735190565969,14.23887771,194.91,194.87,20.0]
[1735190566782,14.23887771,194.93,194.87,20.0]
[1735190566966,14.23887771,194.93,194.88,53.776884]
[1735190567167,14.23887771,194.93,194.88,23.776884]
[1735190567362,14.23887771,194.91,194.87,20.0]
[1735190568780,14.23887771,194.89,194.82,44.23887771]
[1735190569156,14.23887771,194.89,194.85,20.0]
[1735190570281,9.1093651,194.9,194.85,20.0]
[1735190570978,0.7708588,194.89,194.85,20.0]
[1735190574383,0.7708588,194.89,194.82,30.0]
[1735190574978,9.1093651,194.9,194.82,30.0]
[1735190576183,9.1093651,194.92,194.85,23.776884]
[1735190578588,9.1093651,194.91,194.85,23.776884]
[1735190579476,9.1093651,194.9,194.85,23.776884]
[1735190579778,9.1093651,194.9,194.85,53.776884]
[1735190579970,9.1093651,194.9,194.84,23.776884]
[1735190580164,9.1093651,194.9,194.85,30.0]
[1735190587488,9.1093651,194.92,194.85,30.0]
[1735190588285,0.7708588,194.96,194.87,30.0]
[1735190588485,12.8226,194.97,194.92,20.0]
[1735190588486,9.1093651,194.97,194.92,20.0]
[1735190588781,9.1093651,194.96,194.92,20.0]
[1735190588967,9.1093651,194.94,194.9,20.0]
[1735190589175,9.1093651,194.93,194.9,20.0]
[1735190589479,9.1093651,194.94,194.9,20.0]
[1735190590188,9.1093651,194.95,194.9,20.0]
[1735190593287,9.1093651,194.95,194.91,20.0]
[1735190593474,9.1093651,194.93,194.88,1.5687]
[1735190597690,0.7708588,194.99,194.88,1.5687]
[1735190597867,9.1093651,194.95,194.88,1.5687]
[1735190604669,9.1093651,194.91,194.85,30.0]
[1735190610908,9.1093651,194.91,194.83,1.5343]
[1735190611120,9.1093651,194.88,194.85,20.0]
[1735190611322,9.1093651,194.87,194.83,1.5343]
[1735190612907,9.1093651,194.9,194.84,30.0]
[1735190613116,9.1093651,194.91,194.84,30.0]
[1735190613698,9.1093651,194.91,194.85,23.776884]
[1735190617588,9.1093651,194.93,194.88,30.0]
[1735190617927,0.7708588,194.99,194.91,20.0]
[1735190618140,9.1093651,194.97,194.93,20.0]
[1735190618643,9.1093651,194.96,194.9,30.0]
[1735190618813,9.1093651,194.95,194.9,30.0]
[1735190620651,0.7708588,195.0,194.92,30.0]
[1735190620814,9.1093651,194.99,194.93,23.776884]
[1735190621215,9.1093651,195.0,194.94,30.0]
[1735190621414,0.7708588,195.04,194.95,23.776884]
[1735190621638,9.1093651,195.01,194.95,23.776884]
[1735190627155,0.7708588,195.04,194.95,23.776884]
[1735190627323,9.1093651,195.0,194.95,23.776884]
[1735190629053,9.1093651,195.02,194.96,30.0]
[1735190629222,9.1093651,195.02,194.98,30.0]
[1735190629423,9.1093651,195.02,194.96,0.12549]
[1735190630056,9.1093651,195.02,194.95,53.776884]
[1735190630257,36.01365472,195.08,194.9,30.0]
[1735190630258,9.1093651,194.98,194.9,30.0]
[1735190631560,9.1093651,194.96,194.9,30.0]
[1735190632167,9.1093651,194.96,194.88,39.1093651]
[1735190632556,9.1093651,194.94,194.89,20.0]
[1735190632764,9.1093651,194.9,194.86,1.5801]
[1735190634278,0.7708588,194.97,194.86,1.5801]
[1735190634447,9.1093651,194.91,194.87,30.0]
[1735190634651,9.1093651,194.91,194.86,1.5801]
[1735190635475,0.7708588,194.97,194.87,23.776884]
[1735190635684,9.1093651,194.94,194.87,54.54646843]
[1735190636276,9.1093651,194.94,194.87,53.776884]
[1735190636579,9.1093651,194.94,194.87,23.776884]
[1735190636786,9.1093651,194.92,194.87,23.776884]
[1735190638783,9.1093651,194.92,194.87,53.776884]
[1735190640189,9.1093651,194.94,194.87,53.776884]
[1735190640352,0.7708588,194.99,194.92,30.0]
[1735190640551,9.1093651,194.97,194.92,30.0]
[1735190640768,9.1093651,194.97,194.91,23.776884]
[1735190641516,9.1093651,194.97,194.92,30.0]
[1735190641809,9.1093651,194.97,194.91,23.776884]
[1735190642009,9.1093651,194.97,194.92,30.0]
[1735190643817,9.1093651,194.97,194.91,23.776884]
[1735190643973,9.1093651,194.97,194.92,30.0]
[1735190644503,9.1093651,194.97,194.91,23.776884]
[1735190647495,9.1093651,194.97,194.92,30.0]
[1735190648093,9.1093651,194.97,194.93,23.776884]
[1735190648302,9.1093651,195.01,194.95,23.776884]
[1735190648502,9.1093651,195.01,194.95,24.54607424]
[1735190648791,9.1093651,195.0,194.95,24.54607424]
[1735190648982,9.1093651,195.0,194.95,23.776884]
[1735190649294,9.1093651,194.99,194.95,23.776884]
[1735190650276,9.1093651,194.98,194.95,20.0]
[1735190650886,9.1093651,194.99,194.95,20.0]
[1735190652881,28.48011473,195.04,194.96,53.776884]
[1735190652882,9.1093651,195.01,194.96,53.776884]
[1735190653279,9.1093651,195.01,194.96,23.776884]
[1735190653497,9.1093651,195.01,194.96,53.776884]
[1735190657712,9.1093651,195.01,194.96,23.776884]
[1735190658497,9.1093651,195.01,194.96,53.776884]
[1735190659194,9.1093651,195.01,194.96,23.776884]
[1735190660482,9.1093651,195.01,194.96,53.776884]
[1735190661202,12.8166,195.06,194.98,30.0]
[1735190661509,9.1093651,195.03,194.98,30.0]
[1735190661706,9.1093651,195.05,194.99,23.776884]
[1735190663102,9.1093651,195.01,194.96,30.0]
[1735190664596,9.1093651,195.02,194.98,30.0]
[1735190665712,0.7708588,195.06,195.01,30.0]